[Event "11th Arad Open 2018"]
[Site "Arad"]
[Date "2018.08.07"]
[Round "4"]
[White "Georgiev, Kiril"]
[Black "Terbe, Julianna"]
[Result "1-0"]
[ECO "A11"]
[WhiteElo "2593"]
[BlackElo "2234"]
[Annotator "ChessBase"]
[PlyCount "57"]
[EventDate "2018.08.05"]
[EventType "swiss"]
[EventCountry "ROU"]
[SourceTitle "playchess.com"]
[Source "ChessBase"]
[SourceQuality "1"]
[TimeControl "40/5400+30:1800+30"]

1. c4 {[%emt 0:00:00]} c6 {[%emt 0:00:00]} 2. Nf3 {[%emt 0:00:00]} d5 {[%emt 0:00:00]} 3. e3 {[%emt 0:00:11]} Nf6 {[%emt 0:00:08]} 4. Nc3 {[%emt 0:00:17]} Bg4 {[%emt 0:00:05]} 5. Qb3 {[%emt 0:03:36]} Qb6 {[%emt 0:04:21]} 6. Ne5 {[%emt 0:00:43]} Be6 {[%emt 0:00:34]} 7. d4 {[%emt 0:00:09]} Nbd7 {[%emt 0:01:38]} 8. Nxd7 {[%emt 0:05:43]} Nxd7 {[%emt 0:00:12]} 9. cxd5 {[%emt 0:02:00]} Qxb3 {[%emt 0:06:35]} 10. axb3 {[%emt 0:00:11]} Bxd5 {[%emt 0:00:06]} 11. b4 {[%emt 0:04:41]} e5 {[%emt 0:02:31]} 12. Nxd5 {[%emt 0:03:06]} cxd5 {[%emt 0:00:08]} 13. Bd2 {[%emt 0:00:03]} exd4 {[%emt 0:06:00]} 14. exd4 {[%emt 0:01:07]} Be7 {[%emt 0:00:07]} 15. Bb5 {[%emt 0:08:54]} Kd8 {[%emt 0:03:29]} 16. O-O {[%emt 0:01:19]} Bf6 {[%emt 0:08:14]} 17. Ra5 {[%emt 0:04:11]} Nb6 {[%emt 0:07:20]} 18. Bc3 {[%emt 0:01:43]} Ke7 {[%emt 0:11:11]} 19. Rfa1 {[%emt 0:02:03]} a6 {[%emt 0:00:18]} 20. Be2 {[%emt 0:00:57]} Rhd8 {[%emt 0:02:22]} 21. Bf3 {[%emt 0:02:46]} Ke6 {[%emt 0:11:56]} 22. b5 {[%emt 0:12:57]} Nc4 {[%emt 0:08:22]} 23. R5a2 {[%emt 0:04:07]} a5 {[%emt 0:00:06]} 24. b3 {[%emt 0:00:59]} Nd6 {[%emt 0:00:08]} 25. Bxa5 {[%emt 0:04:36]} Re8 {[%emt 0:08:19]} 26. Bg4+ {[%emt 0:06:17]} Ke7 {[%emt 0:00:05]} 27. Bb4 {[%emt 0:00:45]} Rxa2 {[%emt 0:01:09]} 28. Rxa2 {[%emt 0:00:09]} h5 {[%emt 0:00:04]} 29. Re2+ {[%emt 0:00:51]} 1-0

[Event "11th Arad Open 2018"]
[Site "Arad"]
[Date "2018.08.07"]
[Round "4"]
[White "Tarlev, Konstantin"]
[Black "Posedaru, Bogdan"]
[Result "1-0"]
[ECO "D30"]
[WhiteElo "2561"]
[BlackElo "2326"]
[Annotator "ChessBase"]
[PlyCount "105"]
[EventDate "2018.08.05"]
[EventType "swiss"]
[EventCountry "ROU"]
[SourceTitle "playchess.com"]
[Source "ChessBase"]
[SourceQuality "1"]
[TimeControl "40/5400+30:1800+30"]

1. d4 {[%emt 0:00:00]} d5 {[%emt 0:00:00]} 2. c4 {[%emt 0:00:00]} e6 {[%emt 0:00:00]} 3. Nf3 {[%emt 0:00:00]} c6 {[%emt 0:00:00]} 4. Qc2 {[%emt 0:00:00]} dxc4 {[%emt 0:00:00]} 5. Qxc4 {[%emt 0:00:00]} Nf6 {[%emt 0:00:03]} 6. g3 {[%emt 0:00:01]} b5 {[%emt 0:00:04]} 7. Qc2 {[%emt 0:00:03]} Bb7 {[%emt 0:00:05]} 8. Bg2 {[%emt 0:00:06]} Nbd7 {[%emt 0:00:11]} 9. Ne5 {[%emt 0:00:12]} Qb6 {[%emt 0:14:16]} 10. Nxd7 {[%emt 0:04:30]} Nxd7 {[%emt 0:00:08]} 11. Nc3 {[%emt 0:00:04]} Be7 {[%emt 0:08:26]} 12. O-O {[%emt 0:07:11]} O-O {[%emt 0:10:38]} 13. Ne4 {[%emt 0:28:39]} Rac8 {[%emt 0:30:02]} 14. Be3 {[%emt 0:03:42]} c5 {[%emt 0:00:14]} 15. dxc5 {[%emt 0:00:13]} Bxe4 {[%emt 0:01:46]} 16. cxb6 {[%emt 0:11:57]} Bxc2 {[%emt 0:00:59]} 17. bxa7 {[%emt 0:03:43]} f5 {[%emt 0:00:59]} 18. Bb7 {[%emt 0:23:56]} Rcd8 {[%emt 0:07:43]} 19. f3 {[%emt 0:04:18]} b4 {[%emt 0:01:27]} 20. Rac1 {[%emt 0:06:16]} b3 {[%emt 0:01:22]} 21. axb3 {[%emt 0:00:11]} Bxb3 {[%emt 0:00:05]} 22. Rc7 {[%emt 0:01:15]} Bd6 {[%emt 0:06:12]} 23. a8=Q {[%emt 0:01:12]} Rxa8 {[%emt 0:00:03]} 24. Rxd7 {[%emt 0:00:03]} Rad8 {[%emt 0:00:04]} 25. Rxd8 {[%emt 0:02:21]} Rxd8 {[%emt 0:00:04]} 26. Ra1 {[%emt 0:01:07]} Be5 {[%emt 0:02:21]} 27. Ra3 {[%emt 0:00:42]} Bc4 {[%emt 0:00:27]} 28. b4 {[%emt 0:00:17]} Bxe2 {[%emt 0:04:15]} 29. Kf2 {[%emt 0:00:03]} Bc4 {[%emt 0:00:03]} 30. f4 {[%emt 0:01:53]} Bb2 {[%emt 0:01:07]} 31. Ra8 {[%emt 0:00:20]} Rxa8 {[%emt 0:00:04]} 32. Bxa8 {[%emt 0:00:02]} Bb5 {[%emt 0:01:56]} 33. Bf3 {[%emt 0:00:54]} Bc3 {[%emt 0:01:33]} 34. Bc5 {[%emt 0:00:03]} e5 {[%emt 0:00:34]} 35. Be2 {[%emt 0:01:18]} Bc6 {[%emt 0:04:45]} 36. Bc4+ {[%emt 0:00:09]} Kh8 {[%emt 0:00:03]} 37. b5 {[%emt 0:00:19]} Bb7 {[%emt 0:01:06]} 38. Ke3 {[%emt 0:00:43]} h6 {[%emt 0:01:28]} 39. Be6 {[%emt 0:00:52]} g6 {[%emt 0:00:17]} 40. fxe5 {[%emt 0:00:00]} Bxe5 {[%emt 0:00:00]} 41. Bd4 {[%emt 0:15:36]} Bg7 {[%emt 0:18:54]} 42. Bd7 {[%emt 0:08:55]} Kg8 {[%emt 0:00:51]} 43. Bc6 {[%emt 0:00:22]} Bc8 {[%emt 0:00:06]} 44. Bd5+ {[%emt 0:02:43]} Kf8 {[%emt 0:00:52]} 45. b6 {[%emt 0:01:03]} g5 {[%emt 0:02:52]} 46. Bxg7+ {[%emt 0:01:17]} Kxg7 {[%emt 0:00:06]} 47. Be6 {[%emt 0:00:59]} f4+ {[%emt 0:00:15]} 48. gxf4 {[%emt 0:00:02]} gxf4+ {[%emt 0:00:04]} 49. Kxf4 {[%emt 0:00:02]} Ba6 {[%emt 0:00:30]} 50. Ke5 {[%emt 0:00:04]} Kg6 {[%emt 0:00:51]} 51. Kd6 {[%emt 0:00:05]} Kf6 {[%emt 0:00:13]} 52. Bh3 {[%emt 0:00:03]} Bb7 {[%emt 0:01:11]} 53. Kc7 {[%emt 0:00:04]} 1-0

[Event "11th Arad Open 2018"]
[Site "Arad"]
[Date "2018.08.07"]
[Round "4"]
[White "Jianu, Vlad-Cristian"]
[Black "Cerovic, Danilo"]
[Result "1-0"]
[ECO "D12"]
[WhiteElo "2542"]
[BlackElo "2320"]
[Annotator "ChessBase"]
[PlyCount "79"]
[EventDate "2018.08.05"]
[EventType "swiss"]
[EventCountry "ROU"]
[SourceTitle "playchess.com"]
[Source "ChessBase"]
[SourceQuality "1"]
[TimeControl "40/5400+30:1800+30"]

1. d4 {[%emt 0:00:00]} d5 {[%emt 0:00:00]} 2. c4 {[%emt 0:00:00]} c6 {[%emt 0:00:00]} 3. Nf3 {[%emt 0:00:08]} Nf6 {[%emt 0:00:00]} 4. e3 {[%emt 0:00:45]} Bf5 {[%emt 0:00:25]} 5. Nc3 {[%emt 0:00:11]} e6 {[%emt 0:00:16]} 6. Nh4 {[%emt 0:00:19]} Be4 {[%emt 0:00:45]} 7. f3 {[%emt 0:00:36]} Bg6 {[%emt 0:00:08]} 8. Qb3 {[%emt 0:01:41]} Qc7 {[%emt 0:00:29]} 9. Bd2 {[%emt 0:07:30]} Be7 {[%emt 0:00:40]} 10. Nxg6 {[%emt 0:02:20]} hxg6 {[%emt 0:00:45]} 11. g3 {[%emt 0:05:07]} dxc4 {[%emt 0:06:42]} 12. Bxc4 {[%emt 0:00:34]} Nbd7 {[%emt 0:00:17]} 13. O-O {[%emt 0:08:51]} O-O {[%emt 0:09:32]} 14. Rfd1 {[%emt 0:05:19]} b5 {[%emt 0:06:34]} 15. Be2 {[%emt 0:00:39]} a6 {[%emt 0:00:19]} 16. Rac1 {[%emt 0:03:24]} c5 {[%emt 0:03:42]} 17. Be1 {[%emt 0:04:42]} Qb7 {[%emt 0:10:54]} 18. Bf2 {[%emt 0:03:31]} cxd4 {[%emt 0:09:41]} 19. exd4 {[%emt 0:00:28]} Rac8 {[%emt 0:04:25]} 20. a4 {[%emt 0:11:53]} b4 {[%emt 0:02:48]} 21. a5 {[%emt 0:01:08]} Rc7 {[%emt 0:09:55]} 22. Na2 {[%emt 0:11:17]} Rfc8 {[%emt 0:04:12]} 23. Rxc7 {[%emt 0:03:07]} Rxc7 {[%emt 0:00:36]} 24. Qd3 {[%emt 0:04:01]} Qd5 {[%emt 0:03:05]} 25. Rc1 {[%emt 0:04:03]} Qxa5 {[%emt 0:02:50]} 26. Qxa6 {[%emt 0:00:45]} Rxc1+ {[%emt 0:00:55]} 27. Nxc1 {[%emt 0:00:05]} Qxa6 {[%emt 0:04:30]} 28. Bxa6 {[%emt 0:00:07]} Nd5 {[%emt 0:02:37]} 29. Kf1 {[%emt 0:01:20]} Kf8 {[%emt 0:01:36]} 30. Ke2 {[%emt 0:01:40]} N7b6 {[%emt 0:05:38]} 31. Nd3 {[%emt 0:04:30]} Bd6 {[%emt 0:04:57]} 32. Ne5 {[%emt 0:06:18]} Na4 {[%emt 0:01:22]} 33. Nc4 {[%emt 0:00:37]} Ke7 {[%emt 0:01:28]} 34. Kd3 {[%emt 0:00:36]} Nab6 {[%emt 0:01:13]} 35. Nxb6 {[%emt 0:05:16]} Nxb6 {[%emt 0:00:07]} 36. Kc2 {[%emt 0:00:05]} Nd5 {[%emt 0:01:42]} 37. Kb3 {[%emt 0:01:17]} e5 {[%emt 0:01:31]} 38. Bc4 {[%emt 0:01:01]} Ke6 {[%emt 0:01:12]} 39. Ka4 {[%emt 0:02:54]} exd4 {[%emt 0:01:08]} 40. Bxd4 {[%emt 0:00:00]} 1-0

[Event "11th Arad Open 2018"]
[Site "Arad"]
[Date "2018.08.07"]
[Round "4"]
[White "Deepan Chakkravarthy J"]
[Black "Roubalik, Jakub"]
[Result "1-0"]
[ECO "E12"]
[WhiteElo "2530"]
[BlackElo "2402"]
[Annotator "ChessBase"]
[PlyCount "83"]
[EventDate "2018.08.05"]
[EventType "swiss"]
[EventCountry "ROU"]
[SourceTitle "playchess.com"]
[Source "ChessBase"]
[SourceQuality "1"]
[TimeControl "40/5400+30:1800+30"]

1. d4 {[%emt 0:00:00]} Nf6 {[%emt 0:00:00]} 2. c4 {[%emt 0:00:00]} e6 {[%emt 0:00:00]} 3. Nf3 {[%emt 0:00:00]} b6 {[%emt 0:00:40]} 4. a3 {[%emt 0:00:00]} Ba6 {[%emt 0:02:01]} 5. Qb3 {[%emt 0:00:22]} Be7 {[%emt 0:09:45]} 6. Nc3 {[%emt 0:01:04]} d5 {[%emt 0:03:23]} 7. cxd5 {[%emt 0:00:05]} exd5 {[%emt 0:00:06]} 8. Bg5 {[%emt 0:00:07]} Bb7 {[%emt 0:01:52]} 9. Bxf6 {[%emt 0:08:13]} Bxf6 {[%emt 0:00:22]} 10. e3 {[%emt 0:00:05]} O-O {[%emt 0:02:30]} 11. Bd3 {[%emt 0:08:59]} c6 {[%emt 0:21:33]} 12. O-O {[%emt 0:02:54]} Na6 {[%emt 0:01:03]} 13. Rad1 {[%emt 0:09:19]} Nc7 {[%emt 0:02:32]} 14. e4 {[%emt 0:07:04]} g6 {[%emt 0:00:47]} 15. a4 {[%emt 0:06:58]} Ne6 {[%emt 0:02:26]} 16. exd5 {[%emt 0:16:09]} cxd5 {[%emt 0:00:07]} 17. a5 {[%emt 0:04:20]} Nf4 {[%emt 0:01:59]} 18. a6 {[%emt 0:05:00]} Bc6 {[%emt 0:10:44]} 19. Bb5 {[%emt 0:00:05]} Qd7 {[%emt 0:01:20]} 20. Bxc6 {[%emt 0:02:01]} Qxc6 {[%emt 0:00:08]} 21. g3 {[%emt 0:04:07]} Qd7 {[%emt 0:05:51]} 22. Nb5 {[%emt 0:00:09]} Qg4 {[%emt 0:04:53]} 23. Kh1 {[%emt 0:00:49]} Ne6 {[%emt 0:03:32]} 24. Rfe1 {[%emt 0:00:08]} Rfd8 {[%emt 0:00:53]} 25. Ne5 {[%emt 0:05:36]} Bxe5 {[%emt 0:03:28]} 26. Rxe5 {[%emt 0:00:05]} Ng5 {[%emt 0:01:26]} 27. Re3 {[%emt 0:05:43]} Qf5 {[%emt 0:03:43]} 28. Kg2 {[%emt 0:03:46]} h5 {[%emt 0:01:40]} 29. h4 {[%emt 0:01:38]} Qh3+ {[%emt 0:02:58]} 30. Kg1 {[%emt 0:00:05]} Ne4 {[%emt 0:00:22]} 31. Qd3 {[%emt 0:02:16]} Rd7 {[%emt 0:02:30]} 32. Rc1 {[%emt 0:00:26]} Kg7 {[%emt 0:02:53]} 33. Qf1 {[%emt 0:01:05]} Qf5 {[%emt 0:00:09]} 34. Kg2 {[%emt 0:00:13]} Re8 {[%emt 0:02:05]} 35. Qe2 {[%emt 0:00:38]} Re6 {[%emt 0:03:22]} 36. f3 {[%emt 0:01:37]} Nf6 {[%emt 0:04:08]} 37. Rxe6 {[%emt 0:00:05]} fxe6 {[%emt 0:00:35]} 38. Rc7 {[%emt 0:00:20]} Rxc7 {[%emt 0:00:34]} 39. Nxc7 {[%emt 0:00:02]} Kf7 {[%emt 0:00:18]} 40. Nb5 {[%emt 0:00:00]} Qb1 {[%emt 0:00:00]} 41. Nxa7 {[%emt 0:15:14]} Qa2 {[%emt 0:15:45]} 42. Nc6 {[%emt 0:00:15]} 1-0

[Event "11th Arad Open 2018"]
[Site "Arad"]
[Date "2018.08.07"]
[Round "4"]
[White "Georgescu, Tiberiu-Marian"]
[Black "Patrascu, Catalin-Lucian"]
[Result "1-0"]
[ECO "A80"]
[WhiteElo "2495"]
[BlackElo "2286"]
[Annotator "ChessBase"]
[PlyCount "91"]
[EventDate "2018.08.05"]
[EventType "swiss"]
[EventCountry "ROU"]
[SourceTitle "playchess.com"]
[Source "ChessBase"]
[SourceQuality "1"]
[TimeControl "40/5400+30:1800+30"]

1. d4 {[%emt 0:00:00]} f5 {[%emt 0:00:09]} 2. Nc3 {[%emt 0:00:00]} d5 {[%emt 0:02:17]} 3. Bf4 {[%emt 0:00:08]} Nf6 {[%emt 0:07:42]} 4. Nf3 {[%emt 0:00:07]} e6 {[%emt 0:03:27]} 5. e3 {[%emt 0:00:04]} Bd6 {[%emt 0:11:20]} 6. Bd3 {[%emt 0:00:05]} Nc6 {[%emt 0:07:53]} 7. O-O {[%emt 0:01:04]} Qe7 {[%emt 0:07:38]} 8. Ne2 {[%emt 0:09:08]} Bd7 {[%emt 0:06:10]} 9. c4 {[%emt 0:01:13]} dxc4 {[%emt 0:03:51]} 10. Bxc4 {[%emt 0:00:33]} O-O-O {[%emt 0:01:49]} 11. Bxd6 {[%emt 0:12:40]} Qxd6 {[%emt 0:02:41]} 12. Rc1 {[%emt 0:06:19]} Rhg8 {[%emt 0:19:18]} 13. Ng5 {[%emt 0:06:01]} Rde8 {[%emt 0:06:12]} 14. Nf4 {[%emt 0:08:13]} h6 {[%emt 0:07:18]} 15. Nf7 {[%emt 0:06:31]} Qe7 {[%emt 0:01:20]} 16. Ne5 {[%emt 0:01:25]} Nxe5 {[%emt 0:00:53]} 17. dxe5 {[%emt 0:00:04]} Ne4 {[%emt 0:02:19]} 18. f3 {[%emt 0:04:25]} Nc5 {[%emt 0:03:04]} 19. b4 {[%emt 0:02:28]} Na4 {[%emt 0:01:20]} 20. Bxe6 {[%emt 0:00:46]} Bxe6 {[%emt 0:00:42]} 21. Qxa4 {[%emt 0:00:15]} Kb8 {[%emt 0:00:42]} 22. Rfd1 {[%emt 0:07:38]} g5 {[%emt 0:01:55]} 23. Nh5 {[%emt 0:04:40]} Rd8 {[%emt 0:00:41]} 24. Nf6 {[%emt 0:00:11]} Rxd1+ {[%emt 0:00:30]} 25. Rxd1 {[%emt 0:00:05]} Rc8 {[%emt 0:00:44]} 26. f4 {[%emt 0:12:00]} a6 {[%emt 0:00:33]} 27. a3 {[%emt 0:01:12]} Bc4 {[%emt 0:00:18]} 28. Qc2 {[%emt 0:07:46]} Be6 {[%emt 0:00:06]} 29. Qa4 {[%emt 0:02:50]} Rh8 {[%emt 0:00:54]} 30. h3 {[%emt 0:02:06]} Bc8 {[%emt 0:00:28]} 31. Nd7+ {[%emt 0:00:54]} Ka8 {[%emt 0:00:39]} 32. Nf6 {[%emt 0:01:38]} Kb8 {[%emt 0:00:13]} 33. Rd4 {[%emt 0:00:19]} Qe6 {[%emt 0:00:34]} 34. Qc2 {[%emt 0:00:41]} b6 {[%emt 0:00:43]} 35. Qc4 {[%emt 0:01:44]} Qe7 {[%emt 0:00:36]} 36. Qd3 {[%emt 0:00:35]} gxf4 {[%emt 0:00:30]} 37. exf4 {[%emt 0:00:05]} Qe6 {[%emt 0:00:28]} 38. Qc4 {[%emt 0:00:16]} Qxc4 {[%emt 0:00:31]} 39. Rxc4 {[%emt 0:00:03]} Rd8 {[%emt 0:00:04]} 40. Rc3 {[%emt 0:00:00]} Rd4 {[%emt 0:00:00]} 41. Nh5 {[%emt 0:21:54]} a5 {[%emt 0:26:26]} 42. bxa5 {[%emt 0:00:06]} bxa5 {[%emt 0:00:03]} 43. Re3 {[%emt 0:00:45]} Rd7 {[%emt 0:00:31]} 44. Kf2 {[%emt 0:01:11]} c5 {[%emt 0:00:47]} 45. g4 {[%emt 0:01:46]} Rc7 {[%emt 0:01:33]} 46. e6 {[%emt 0:00:18]} 1-0

[Event "11th Arad Open 2018"]
[Site "Arad"]
[Date "2018.08.07"]
[Round "4"]
[White "Stany, G A"]
[Black "Macovei, Andrei"]
[Result "1/2-1/2"]
[ECO "B14"]
[WhiteElo "2494"]
[BlackElo "2394"]
[Annotator "ChessBase"]
[PlyCount "72"]
[EventDate "2018.08.05"]
[EventType "swiss"]
[EventCountry "ROU"]
[SourceTitle "playchess.com"]
[Source "ChessBase"]
[SourceQuality "1"]
[TimeControl "40/5400+30:1800+30"]

1. e4 {[%emt 0:00:00]} c6 {[%emt 0:00:21]} 2. d4 {[%emt 0:00:00]} d5 {[%emt 0:00:07]} 3. exd5 {[%emt 0:00:00]} cxd5 {[%emt 0:00:03]} 4. c4 {[%emt 0:00:00]} Nf6 {[%emt 0:02:02]} 5. Nc3 {[%emt 0:00:00]} g6 {[%emt 0:02:04]} 6. Qb3 {[%emt 0:00:06]} Bg7 {[%emt 0:00:28]} 7. cxd5 {[%emt 0:00:06]} O-O {[%emt 0:00:04]} 8. Be2 {[%emt 0:00:14]} Nbd7 {[%emt 0:00:57]} 9. Bf3 {[%emt 0:00:07]} Nb6 {[%emt 0:00:54]} 10. Nge2 {[%emt 0:00:19]} Bg4 {[%emt 0:01:06]} 11. Bxg4 {[%emt 0:00:06]} Nxg4 {[%emt 0:00:02]} 12. a4 {[%emt 0:00:13]} Nf6 {[%emt 0:05:14]} 13. Nf4 {[%emt 0:00:15]} a5 {[%emt 0:01:18]} 14. O-O {[%emt 0:00:09]} g5 {[%emt 0:03:07]} 15. Nd3 {[%emt 0:11:16]} h6 {[%emt 0:00:08]} 16. Nc5 {[%emt 0:00:07]} Nbxd5 {[%emt 0:25:01]} 17. Nxb7 {[%emt 0:07:24]} Rb8 {[%emt 0:06:14]} 18. Nxd5 {[%emt 0:24:32]} Nxd5 {[%emt 0:00:52]} 19. Qb5 {[%emt 0:04:56]} Qc7 {[%emt 0:10:04]} 20. Qxd5 {[%emt 0:00:07]} Rxb7 {[%emt 0:00:44]} 21. Bd2 {[%emt 0:00:13]} Rxb2 {[%emt 0:01:20]} 22. Bxa5 {[%emt 0:00:17]} Qa7 {[%emt 0:19:53]} 23. Bc3 {[%emt 0:02:13]} Rc2 {[%emt 0:00:05]} 24. Qb3 {[%emt 0:01:15]} Rxc3 {[%emt 0:00:12]} 25. Qxc3 {[%emt 0:00:04]} Bxd4 {[%emt 0:00:02]} 26. Qc6 {[%emt 0:04:28]} Bxa1 {[%emt 0:00:39]} 27. Rxa1 {[%emt 0:00:04]} Qd4 {[%emt 0:00:50]} 28. Rb1 {[%emt 0:00:28]} Rd8 {[%emt 0:01:47]} 29. h3 {[%emt 0:00:21]} Rd6 {[%emt 0:05:36]} 30. Qe8+ {[%emt 0:07:16]} Kg7 {[%emt 0:00:07]} 31. Rb8 {[%emt 0:08:42]} Qa1+ {[%emt 0:01:24]} 32. Kh2 {[%emt 0:00:03]} Qe5+ {[%emt 0:00:01]} 33. g3 {[%emt 0:00:05]} Kg6 {[%emt 0:00:49]} 34. Qg8+ {[%emt 0:13:44]} Qg7 {[%emt 0:00:07]} 35. Qc8 {[%emt 0:02:26]} Qd4 {[%emt 0:02:59]} 36. Qg8+ {[%emt 0:01:07]} Qg7 1/2-1/2

[Event "11th Arad Open 2018"]
[Site "Arad"]
[Date "2018.08.07"]
[Round "4"]
[White "Swayams, Mishra"]
[Black "Gilea, Lucian"]
[Result "1-0"]
[ECO "A55"]
[WhiteElo "2467"]
[BlackElo "2279"]
[Annotator "ChessBase"]
[PlyCount "75"]
[EventDate "2018.08.05"]
[EventType "swiss"]
[EventCountry "ROU"]
[SourceTitle "playchess.com"]
[Source "ChessBase"]
[SourceQuality "1"]
[TimeControl "40/5400+30:1800+30"]

1. d4 {[%emt 0:08:08]} Nf6 {[%emt 0:00:00]} 2. c4 {[%emt 0:01:46]} d6 {[%emt 0:00:13]} 3. Nf3 {[%emt 0:00:25]} Nbd7 {[%emt 0:00:30]} 4. Nc3 {[%emt 0:00:27]} e5 {[%emt 0:00:12]} 5. e4 {[%emt 0:00:05]} Be7 {[%emt 0:00:35]} 6. Be2 {[%emt 0:00:22]} O-O {[%emt 0:00:42]} 7. O-O {[%emt 0:00:13]} Re8 {[%emt 0:04:30]} 8. Qc2 {[%emt 0:00:45]} c6 {[%emt 0:02:10]} 9. Rd1 {[%emt 0:00:24]} Qc7 {[%emt 0:00:42]} 10. h3 {[%emt 0:01:05]} a6 {[%emt 0:05:25]} 11. Be3 {[%emt 0:04:51]} b5 {[%emt 0:02:57]} 12. a3 {[%emt 0:00:12]} Bf8 {[%emt 0:03:47]} 13. Rac1 {[%emt 0:01:18]} exd4 {[%emt 0:02:29]} 14. Nxd4 {[%emt 0:02:33]} c5 {[%emt 0:01:03]} 15. Nf5 {[%emt 0:02:53]} b4 {[%emt 0:00:41]} 16. Nd5 {[%emt 0:04:41]} Nxd5 {[%emt 0:00:17]} 17. cxd5 {[%emt 0:06:27]} bxa3 {[%emt 0:07:23]} 18. bxa3 {[%emt 0:01:09]} Nf6 {[%emt 0:00:21]} 19. Ng3 {[%emt 0:00:38]} Rb8 {[%emt 0:14:12]} 20. Bd2 {[%emt 0:05:35]} Qe7 {[%emt 0:14:46]} 21. Bd3 {[%emt 0:01:12]} g6 {[%emt 0:00:20]} 22. Rb1 {[%emt 0:01:34]} Rxb1 {[%emt 0:01:49]} 23. Rxb1 {[%emt 0:01:59]} Nd7 {[%emt 0:00:07]} 24. Qa4 {[%emt 0:07:10]} Ne5 {[%emt 0:01:29]} 25. Bxa6 {[%emt 0:01:56]} Bxh3 {[%emt 0:00:09]} 26. Rb7 {[%emt 0:03:24]} Bd7 {[%emt 0:17:01]} 27. Bb5 {[%emt 0:00:37]} Bxb5 {[%emt 0:01:32]} 28. Qxb5 {[%emt 0:00:08]} Qd8 {[%emt 0:00:14]} 29. Bg5 {[%emt 0:01:25]} Qc8 {[%emt 0:04:49]} 30. a4 {[%emt 0:03:17]} c4 {[%emt 0:00:44]} 31. a5 {[%emt 0:00:28]} Nd3 {[%emt 0:02:12]} 32. Be3 {[%emt 0:05:57]} h5 {[%emt 0:05:17]} 33. a6 {[%emt 0:02:22]} h4 {[%emt 0:00:01]} 34. Ne2 {[%emt 0:03:07]} Rxe4 {[%emt 0:02:19]} 35. Qd7 {[%emt 0:02:37]} Qxd7 {[%emt 0:00:30]} 36. Rxd7 {[%emt 0:00:30]} Re8 {[%emt 0:00:30]} 37. a7 {[%emt 0:00:30]} Ra8 {[%emt 0:00:30]} 38. Bb6 {[%emt 0:00:30]} 1-0

[Event "11th Arad Open 2018"]
[Site "Arad"]
[Date "2018.08.07"]
[Round "4"]
[White "Costachi, Mihnea"]
[Black "Antal, Gergely"]
[Result "1/2-1/2"]
[ECO "D85"]
[WhiteElo "2453"]
[BlackElo "2549"]
[Annotator "RC"]
[PlyCount "42"]
[EventDate "2018.08.05"]
[EventType "swiss"]
[EventCountry "ROU"]
[SourceTitle "playchess.com"]
[Source "ChessBase"]
[SourceQuality "1"]
[TimeControl "40/5400+30:1800+30"]

1. d4 {[%emt 0:00:00]} Nf6 {[%emt 0:00:00]} 2. c4 {[%emt 0:00:26]} g6 {[%emt 0:00:00]} 3. Nc3 {[%emt 0:00:04]} d5 {[%emt 0:00:00]} 4. cxd5 {[%emt 0:00:40]} Nxd5 {[%emt 0:00:01]} 5. Bd2 {[%emt 0:00:33]} Bg7 {[%emt 0:00:21]} 6. e4 {[%emt 0:00:05]} Nxc3 {[%emt 0:00:13]} 7. Bxc3 {[%emt 0:00:07]} O-O {[%emt 0:00:16]} 8. Qd2 {[%emt 0:01:40]} c5 {[%emt 0:00:26]} 9. d5 {[%emt 0:00:06]} e6 {[%emt 0:00:07]} 10. Bxg7 {[%emt 0:04:15]} Kxg7 {[%emt 0:00:05]} 11. Bc4 {[%emt 0:00:29]} Nd7 {[%emt 0:00:54]} 12. Qc3+ {[%emt 0:08:36]} Qf6 {[%emt 0:01:12]} 13. Qxf6+ {[%emt 0:04:37]} Nxf6 {[%emt 0:09:48]} 14. dxe6 {[%emt 0:00:23]} Nxe4 {[%emt 0:01:23]} 15. exf7 {[%emt 0:01:31]} Rb8 {[%emt 0:05:38]} 16. Nf3 {[%emt 0:09:43]} b5 {[%emt 0:23:31]} 17. Bd5 {[%emt 0:03:37]} Nf6 {[%emt 0:17:39]} 18. O-O-O {[%emt 0:01:18]} Nxd5 {[%emt 0:00:10]} 19. Rxd5 {[%emt 0:00:05]} Bb7 {[%emt 0:00:24]} 20. Rxc5 {[%emt 0:01:10]} Bxf3 {[%emt 0:00:05]} 21. gxf3 {[%emt 0:00:07]} Rxf7 {[%emt 0:00:03]} 1/2-1/2

[Event "11th Arad Open 2018"]
[Site "Arad"]
[Date "2018.08.07"]
[Round "4"]
[White "Cioara, Andrei-Nestor"]
[Black "Ciorgovean, Iustin"]
[Result "1-0"]
[ECO "A40"]
[WhiteElo "2435"]
[BlackElo "2245"]
[Annotator "NA RC"]
[PlyCount "97"]
[EventDate "2018.08.05"]
[EventType "swiss"]
[EventCountry "ROU"]
[SourceTitle "playchess.com"]
[Source "ChessBase"]
[SourceQuality "1"]
[TimeControl "40/5400+30:1800+30"]

1. d4 {[%emt 0:00:00]} Nf6 {[%emt 0:00:00]} 2. c4 {[%emt 0:00:00]} e6 {[%emt 0:00:00]} 3. g3 {[%emt 0:00:00]} c5 {[%emt 0:00:47]} 4. Nf3 {[%emt 0:03:39]} cxd4 {[%emt 0:03:33]} 5. Nxd4 {[%emt 0:00:02]} a6 {[%emt 0:10:20]} 6. Bg2 {[%emt 0:01:09]} Qc7 {[%emt 0:00:07]} 7. Nc3 {[%emt 0:08:53]} Qxc4 {[%emt 0:03:16]} 8. Bf4 {[%emt 0:00:39]} Nc6 {[%emt 0:09:18]} 9. Nb3 {[%emt 0:00:51]} d5 {[%emt 0:05:18]} 10. O-O {[%emt 0:22:11]} Be7 {[%emt 0:20:49]} 11. a3 {[%emt 0:03:27]} Ne4 {[%emt 0:18:09]} 12. Nxe4 {[%emt 0:12:22]} dxe4 {[%emt 0:00:02]} 13. Nd2 {[%emt 0:00:25]} Qb5 {[%emt 0:03:57]} 14. Nxe4 {[%emt 0:08:35]} O-O {[%emt 0:00:35]} 15. Bc7 {[%emt 0:05:19]} Qxb2 {[%emt 0:05:12]} 16. e3 {[%emt 0:03:35]} e5 {[%emt 0:05:21]} 17. Qd3 {[%emt 0:07:09]} Qb5 {[%emt 0:01:27]} 18. Qc2 {[%emt 0:00:07]} Na5 {[%emt 0:03:24]} 19. Rfc1 {[%emt 0:08:04]} Nb3 {[%emt 0:01:50]} 20. Rab1 {[%emt 0:00:04]} Be6 {[%emt 0:00:42]} 21. Nd2 {[%emt 0:05:41]} Nxc1 {[%emt 0:04:58]} 22. Rxb5 {[%emt 0:00:04]} Ne2+ {[%emt 0:00:21]} 23. Kf1 {[%emt 0:00:15]} Nxg3+ {[%emt 0:00:07]} 24. hxg3 {[%emt 0:00:27]} axb5 {[%emt 0:00:03]} 25. Bxe5 {[%emt 0:04:18]} Rxa3 {[%emt 0:00:39]} 26. Bxb7 {[%emt 0:03:35]} b4 {[%emt 0:00:19]} 27. Qc7 {[%emt 0:00:26]} Bd8 {[%emt 0:02:05]} 28. Qd6 {[%emt 0:00:02]} Ba5 {[%emt 0:00:23]} 29. Bb2 {[%emt 0:00:11]} Ra2 {[%emt 0:00:47]} 30. Qe5 {[%emt 0:00:14]} Rxb2 {[%emt 0:00:07]} 31. Qxb2 {[%emt 0:00:01]} Rb8 {[%emt 0:00:15]} 32. Qe5 {[%emt 0:02:12]} Rxb7 {[%emt 0:00:09]} 33. Qxa5 {[%emt 0:00:03]} Rb8 {[%emt 0:00:09]} 34. Qc7 {[%emt 0:00:19]} Rf8 {[%emt 0:01:19]} 35. Qb6 {[%emt 0:00:25]} b3 {[%emt 0:00:04]} 36. Nxb3 {[%emt 0:00:06]} Bxb3 {[%emt 0:00:03]} 37. Qxb3 {[%emt 0:00:03]} h5 {[%emt 0:00:14]} 38. e4 {[%emt 0:00:14]} Re8 {[%emt 0:00:25]} 39. Qd5 {[%emt 0:00:06]} g6 {[%emt 0:00:07]} 40. f4 {[%emt 0:00:00]} Re6 {[%emt 0:00:00]} 41. Kf2 {[%emt 0:15:28]} Ra6 {[%emt 0:16:53]} 42. Kg2 {[%emt 0:03:53]} Kg7 {[%emt 0:01:18]} 43. Kh3 {[%emt 0:00:22]} Kg8 {[%emt 0:02:33]} 44. Kh4 {[%emt 0:00:09]} Ra3 {[%emt 0:00:40]} 45. f5 {[%emt 0:01:13]} Ra6 {[%emt 0:01:00]} 46. Kg5 {[%emt 0:01:00]} Kg7 {[%emt 0:00:38]} 47. f6+ {[%emt 0:00:11]} Kg8 {[%emt 0:01:35]} 48. Kh6 {[%emt 0:00:42]} Ra8 {[%emt 0:01:00]} 49. Qxa8# 1-0